{"text_format":"1","workbook":"xlsx","n_sheets":16,"sheets":["Renseignements","Ce que fait le tableau","Prévisionnel","Réel","Tableau baignade","Moyennes","Fréquentation globale","Fréquentation TA1","Fréquentation TA2","Fréquentation TA3","Pourcentage S1","Pourcentage S2","Pourcentage S3","Pourcentage S4","Calculs","Global"],"not_rendered":{"charts":10,"images":8,"macros":1,"external_links":0,"defined_names":6,"comments":0,"pivot_tables":0},"unopened":[{"sheet":"Pourcentage S1","index":10,"reason":"not_a_worksheet"},{"sheet":"Pourcentage S2","index":11,"reason":"not_a_worksheet"},{"sheet":"Pourcentage S3","index":12,"reason":"not_a_worksheet"},{"sheet":"Pourcentage S4","index":13,"reason":"not_a_worksheet"},{"sheet":"Global","index":15,"reason":"not_a_worksheet"}],"bounds":{"document_bytes":16777216,"sheet_cells":100000,"rows_first":2000,"rows_last":500,"rows_between":2000,"halvings":0,"cell_chars":16384,"cell_head_chars":4096},"cells_cut":0,"cells_raw":0,"read":"whole","date_system":"1900"}

{"sheet":"Renseignements","index":0,"n_rows":53,"n_cols":5,"rows_kept":53,"cut":false,"hidden":false,"merged":[[33,0,34,8],[52,0,52,8],[0,0,5,8],[6,0,7,8],[8,0,8,8],[10,1,10,5],[11,1,11,5],[19,1,19,3],[20,1,20,3],[22,1,22,3],[13,0,13,4],[18,0,18,3],[21,1,21,3]]}
["Informations"]
[]
[]
[]
[]
[]
["L'utilisation de ce tableau se veut simple et accessible à tous !\nMerci de nous faire parvenir vos remarques et améliorations éventuelles par courriel"]
[]
["admin@lanimetvous.com"]
[]
["Période :","Vacances de Février"]
["Date :","2016-02-23"]
[]
["Tranches d'âge (TA)"]
["Tranches d'âge 1 (TA1)",4,"-",5,"ans"]
["Tranches d'âge 2 (TA2)",6,"-",11,"ans"]
["Tranches d'âge 3 (TA3)",12,"-",17,"ans"]
[]
["Durée :"]
["Durée de fonctionnement du matin",4]
["Durée de fonctionnement de l'après-midi :",4]
["Durée de fonctionnement de la soirée :",4]
["Une journée dure au maximum",{"$f":"SUM(B20:D22)","v":12}]
[]
[]
[]
[]
[]
[]
[]
[]
[]
[]
["Les dons pour l'association sont les bienvenus"]
[]
[]
[]
[]
[]
[]
[]
[]
[]
[]
[]
[]
[]
[]
[]
[]
[]
[]
["Merci à la communauté CCM pour son soutien technique"]

{"sheet":"Ce que fait le tableau","index":1,"n_rows":33,"n_cols":11,"rows_kept":33,"cut":false,"hidden":false,"merged":[[26,0,31,13],[32,0,32,13],[7,2,7,13],[9,0,9,13],[18,0,18,13],[19,2,19,13],[24,0,24,13],[10,2,10,7],[11,3,11,7],[12,3,12,7],[13,3,13,7],[0,0,1,13],[25,2,25,13],[14,3,14,7],[15,3,15,7],[16,3,16,7],[10,9,10,13],[11,10,11,13],[12,10,12,13],[13,10,13,13],[2,0,2,13],[3,2,3,13],[5,0,5,13],[6,2,6,13]]}
["Ce que fait ce tableau :"]
[]
["Tranches d'âge :"]
[null,"·","Renseignez les tranches d'âge de votre structure"]
[]
["Moyennes :"]
[null,"·","Moyenne du nombre d'enfant pour chaque semaine"]
[null,"·","Moyenne du nombre d'enfant pour la totalité du séjour"]
[]
["Fréquentations :"]
[null,"·","Fréquentation globale",null,null,null,null,null,"·","Fréquentation par tranche d'âge"]
[null,null,"·","En demi-journée pour chaque semaine",null,null,null,null,null,"·","En heure"]
[null,null,"·","En demi-journée pour la totalité du séjour",null,null,null,null,null,"·","En journée"]
[null,null,"·","En journée pour chaque semaine",null,null,null,null,null,"·","En demi-journée"]
[null,null,"·","En journée pour la totalité du séjour"]
[null,null,"·","En heure pour chaque semaine"]
[null,null,"·","En heure pour la totalité du séjour"]
[]
["Pourcentages :"]
[null,"·","Fréquentation par semaine par tranche d'âge"]
[]
["Différence Prévisionnel/Réel :"]
[null,"·","Calcul de la différence entre l'effectif prévisionnel et le réel"]
[]
["Base de donnée :"]
[null,"·","Possibilité d'utilisation d'une base de donnée"]
["        Le fichier comportant les informations doit impérativement s'intituler \"bdd.xlsx\"et se trouver dans le même dossier que celui où se trouve ce fichier ! En l'absence du fichier de base de données, il ne vous sera pas possible d'ajouter d'enfant depuis une base de données. Il reste cependant possible d'utiliser le fichier.\n     Le fichier de base de donnée est livré avec le fichier de pointage. Les deux fichiers doivent se trouver dans le même dossier."]
[]
[]
[]
[]
[]
["plus d'aide à propos de son utilisation…"]

{"sheet":"Prévisionnel","index":2,"n_rows":21,"n_cols":68,"rows_kept":21,"cut":false,"hidden":false,"merged":[[7,0,8,0],[7,1,8,1],[7,2,8,2],[6,52,6,66],[6,22,6,36],[6,37,6,51],[7,37,7,39],[7,40,7,42],[7,43,7,45],[7,46,7,48],[7,49,7,51],[7,52,7,54],[7,55,7,57],[7,58,7,60],[7,61,7,63],[7,64,7,66],[1,0,1,2],[1,4,1,6],[2,0,2,2],[2,4,2,6],[6,7,6,21],[7,4,8,4],[7,5,8,5],[7,3,8,3],[6,67,8,67],[7,31,7,33],[7,34,7,36],[7,6,8,6],[7,7,7,9],[7,10,7,12],[7,13,7,15],[7,16,7,18],[7,19,7,21],[7,22,7,24],[7,25,7,27],[7,28,7,30]]}
[]
["Date du premier jour du séjour :",null,null,null,"Période :"]
[{"$f":"Renseignements!B12","v":"2016-02-23"},null,null,null,{"$f":"Renseignements!B11","v":"Vacances de Février"}]
[]
[]
[]
[null,null,null,null,null,null,null,"Semaine 1",null,null,null,null,null,null,null,null,null,null,null,null,null,null,"Semaine 2",null,null,null,null,null,null,null,null,null,null,null,null,null,null,"Semaine 3",null,null,null,null,null,null,null,null,null,null,null,null,null,null,"Semaine 4",null,null,null,null,null,null,null,null,null,null,null,null,null,null,"TOT"]
["NOM","Prénom","Date de naissance","Sexe","Régime","Âge","Tranche d'âge",23,null,null,24,null,null,25,null,null,26,null,null,27,null,null,2,null,null,3,null,null,4,null,null,5,null,null,6,null,null,2,null,null,3,null,null,4,null,null,5,null,null,6,null,null,7,null,null,8,null,null,9,null,null,10,null,null,11]
[null,null,null,null,null,null,null,"m","am","s",{"$f":"H9","v":"m"},{"$f":"I9","v":"am"},{"$f":"J9","v":"s"},{"$f":"K9","v":"m"},"am","s","m","am","s","m","am","s","m","am","s","m","am","s","m","am","s","m","am","s","m","am","s",{"$f":"AI9","v":"m"},{"$f":"AJ9","v":"am"},{"$f":"AK9","v":"s"},{"$f":"AL9","v":"m"},{"$f":"AM9","v":"am"},{"$f":"AN9","v":"s"},{"$f":"AO9","v":"m"},{"$f":"AP9","v":"am"},{"$f":"AQ9","v":"s"},{"$f":"AR9","v":"m"},{"$f":"AS9","v":"am"},{"$f":"AT9","v":"s"},{"$f":"AU9","v":"m"},{"$f":"AV9","v":"am"},{"$f":"AW9","v":"s"},{"$f":"AI9","v":"m"},{"$f":"AJ9","v":"am"},{"$f":"AK9","v":"s"},"m","am","s","m","am","s","m","am","s","m","am","s"]
["E","Marvin","28/08/2007","G","CAF",{"$f":"IF(C10<>\"\",DATEDIF(C10,$A$3,\"y\"),\"\")","v":8},{"$f":"IF(C10=\"\",\"\",IF(F10<Renseignements!$B$15,\"Autres\",IF(F10<Renseignements!$B$16,Renseignements!$B$15&\" \"&Renseignements!$C$15&\" \"&Renseignements!$D$15&\" \"&Renseignements!$E$15,IF(F10<Renseignements!$B$17,Renseignements!$B$16&\" \"&Renseignements!$C$16&\" \"&Renseignements!$D$16&\" \"&Renseignements!$E$16,IF(F10<=Renseignements!$D$17,Renseignements!$B$17&\" \"&Renseignements!$C$17&\" \"&Renseignements!$D$17&\" \"&Renseignements!$E$17,\"Autres\")))))","v":"6 - 11 ans"},null,null,null,"x","x","x",null,null,null,null,null,null,null,null,null,null,null,null,null,null,null,null,null,null,null,null,null,null,null,null,null,null,null,null,null,null,null,null,null,null,null,null,null,null,null,null,null,null,null,null,null,null,null,null,null,null,null,null,null,null,{"$f":"SUBTOTAL(3,H10:BO10)","v":3}]
["E","Marvin","2011-08-28","F","CAF",{"$f":"IF(C11<>\"\",DATEDIF(C11,$A$3,\"y\"),\"\")","v":4},{"$f":"IF(C11=\"\",\"\",IF(F11<Renseignements!$B$15,\"Autres\",IF(F11<Renseignements!$B$16,Renseignements!$B$15&\" \"&Renseignements!$C$15&\" \"&Renseignements!$D$15&\" \"&Renseignements!$E$15,IF(F11<Renseignements!$B$17,Renseignements!$B$16&\" \"&Renseignements!$C$16&\" \"&Renseignements!$D$16&\" \"&Renseignements!$E$16,IF(F11<=Renseignements!$D$17,Renseignements!$B$17&\" \"&Renseignements!$C$17&\" \"&Renseignements!$D$17&\" \"&Renseignements!$E$17,\"Autres\")))))","v":"4 - 5 ans"},"x","x","x",null,null,null,null,null,null,null,null,null,null,null,null,null,null,null,null,null,null,null,null,null,null,null,null,null,null,null,null,null,null,null,null,null,null,null,null,null,null,null,null,null,null,null,null,null,null,null,null,null,null,null,null,null,null,null,null,null,{"$f":"SUBTOTAL(3,H11:BO11)","v":3}]
["E","Marvin","28/08/2007","G",null,{"$f":"IF(C12<>\"\",DATEDIF(C12,$A$3,\"y\"),\"\")","v":8},{"$f":"IF(C12=\"\",\"\",IF(F12<Renseignements!$B$15,\"Autres\",IF(F12<Renseignements!$B$16,Renseignements!$B$15&\" \"&Renseignements!$C$15&\" \"&Renseignements!$D$15&\" \"&Renseignements!$E$15,IF(F12<Renseignements!$B$17,Renseignements!$B$16&\" \"&Renseignements!$C$16&\" \"&Renseignements!$D$16&\" \"&Renseignements!$E$16,IF(F12<=Renseignements!$D$17,Renseignements!$B$17&\" \"&Renseignements!$C$17&\" \"&Renseignements!$D$17&\" \"&Renseignements!$E$17,\"Autres\")))))","v":"6 - 11 ans"},null,null,null,"x","x","x",null,null,null,null,null,null,null,null,null,null,null,null,null,null,null,null,null,null,null,null,null,null,null,null,null,null,null,null,null,null,null,null,null,null,null,null,null,null,null,null,null,null,null,null,null,null,null,null,null,null,null,null,null,null,{"$f":"SUBTOTAL(3,H12:BO12)","v":3}]
["E","Marvin","28/08/2007","F","CAF",{"$f":"IF(C13<>\"\",DATEDIF(C13,$A$3,\"y\"),\"\")","v":8},{"$f":"IF(C13=\"\",\"\",IF(F13<Renseignements!$B$15,\"Autres\",IF(F13<Renseignements!$B$16,Renseignements!$B$15&\" \"&Renseignements!$C$15&\" \"&Renseignements!$D$15&\" \"&Renseignements!$E$15,IF(F13<Renseignements!$B$17,Renseignements!$B$16&\" \"&Renseignements!$C$16&\" \"&Renseignements!$D$16&\" \"&Renseignements!$E$16,IF(F13<=Renseignements!$D$17,Renseignements!$B$17&\" \"&Renseignements!$C$17&\" \"&Renseignements!$D$17&\" \"&Renseignements!$E$17,\"Autres\")))))","v":"6 - 11 ans"},"x","x","x",null,null,null,null,null,null,null,null,null,null,null,null,null,null,null,null,null,null,null,null,null,null,null,null,null,null,null,null,null,null,null,null,null,null,null,null,null,null,null,null,null,null,null,null,null,null,null,null,null,null,null,null,null,null,null,null,null,{"$f":"SUBTOTAL(3,H13:BO13)","v":3}]
[null,null,null,null,null,{"$f":"IF(C14<>\"\",DATEDIF(C14,$A$3,\"y\"),\"\")","v":""},{"$f":"IF(C14=\"\",\"\",IF(F14<Renseignements!$B$15,\"Autres\",IF(F14<Renseignements!$B$16,Renseignements!$B$15&\" \"&Renseignements!$C$15&\" \"&Renseignements!$D$15&\" \"&Renseignements!$E$15,IF(F14<Renseignements!$B$17,Renseignements!$B$16&\" \"&Renseignements!$C$16&\" \"&Renseignements!$D$16&\" \"&Renseignements!$E$16,IF(F14<=Renseignements!$D$17,Renseignements!$B$17&\" \"&Renseignements!$C$17&\" \"&Renseignements!$D$17&\" \"&Renseignements!$E$17,\"Autres\")))))","v":""},null,null,null,null,null,null,null,null,null,null,null,null,null,null,null,null,null,null,null,null,null,null,null,null,null,null,null,null,null,null,null,null,null,null,null,null,null,null,null,null,null,null,null,null,null,null,null,null,null,null,null,null,null,null,null,null,null,null,null,null,{"$f":"SUBTOTAL(3,H14:BO14)","v":0}]
[null,null,null,null,null,"Total",{"$f":"SUM(G16:G19)","v":4},{"$f":"SUM(H16:H19)","v":2},{"$f":"SUM(I16:I19)","v":2},2,2,2,2,0,0,0,0,0,0,0,0,0,0,0,0,0,0,0,0,0,0,0,0,0,0,0,0,{"$f":"SUM(AL16:AL19)","v":0},{"$f":"SUM(AM16:AM19)","v":0},{"$f":"SUM(AN16:AN19)","v":0},{"$f":"SUM(AO16:AO19)","v":0},{"$f":"SUM(AP16:AP19)","v":0},{"$f":"SUM(AQ16:AQ19)","v":0},{"$f":"SUM(AR16:AR19)","v":0},{"$f":"SUM(AS16:AS19)","v":0},{"$f":"SUM(AT16:AT19)","v":0},{"$f":"SUM(AU16:AU19)","v":0},{"$f":"SUM(AV16:AV19)","v":0},{"$f":"SUM(AW16:AW19)","v":0},{"$f":"SUM(AX16:AX19)","v":0},{"$f":"SUM(AY16:AY19)","v":0},{"$f":"SUM(AZ16:AZ19)","v":0},0,0,0,0,0,0,0,0,0,0,0,0,0,0,0]
[null,null,null,null,null,{"$f":"Renseignements!$B$15&\" \"&Renseignements!$C$15&\" \"&Renseignements!$D$15&\" \"&Renseignements!$E$15","v":"4 - 5 ans"},{"$f":"COUNTIF(G$9:G$14,$F16)","v":1},{"$f":"SUMPRODUCT(($G$9:$G$14=$F16)*(H$9:H$14=\"x\"))","v":1},1,1,0,0,0,0,0,0,0,0,0,0,0,0,0,{"$f":"SUMPRODUCT(($G$9:$G$14=$F16)*(X$9:X$14=\"x\"))","v":0},0,0,0,0,0,0,0,0,0,0,0,0,0,0,0,0,0,0,0,0,0,0,0,0,0,0,0,0,0,0,0,0,0,0,0,0,0,0,0,0,0,0,0]
[null,null,null,null,null,{"$f":"Renseignements!$B$16&\" \"&Renseignements!$C$16&\" \"&Renseignements!$D$16&\" \"&Renseignements!$E$16","v":"6 - 11 ans"},{"$f":"COUNTIF(G$9:G$14,$F17)","v":3},1,1,1,2,2,2,0,0,0,0,0,0,0,0,0,0,0,0,0,0,0,0,0,0,0,0,0,0,0,0,0,0,0,0,0,0,0,0,0,0,0,0,0,0,0,0,0,0,0,0,0,0,0,0,0,0,0,0,0,0]
[null,null,null,null,null,{"$f":"Renseignements!$B$17&\" \"&Renseignements!$C$17&\" \"&Renseignements!$D$17&\" \"&Renseignements!$E$17","v":"12 - 17 ans"},{"$f":"COUNTIF(G$9:G$14,$F18)","v":0},0,0,0,0,0,0,0,0,0,0,0,0,0,0,0,0,0,0,0,0,0,0,0,0,0,0,0,0,0,0,0,0,0,0,0,0,0,0,0,0,0,0,0,0,0,0,0,0,0,0,0,0,0,0,0,0,0,0,0,0]
[null,null,null,null,null,"Autres",{"$f":"COUNTIF(G$9:G$14,$F19)","v":0},0,0,0,0,0,0,0,0,0,0,0,0,0,0,0,0,0,0,0,0,0,0,0,0,0,0,0,0,0,0,0,0,0,0,0,0,0,0,0,0,0,0,0,0,0,0,0,0,0,0,0,0,0,0,0,0,0,0,0,0]
[null,null,null,null,null,"Garçons",{"$f":"COUNTIF(D$9:D$14,\"G\")","v":2},{"$f":"SUMPRODUCT(($D$9:$D$14=\"G\")*(H$9:H$14=\"x\"))","v":0},{"$f":"SUMPRODUCT(($D$9:$D$14=\"G\")*(I$9:I$14=\"x\"))","v":0},0,2,2,2,0,0,0,0,0,0,0,0,0,0,0,0,0,0,0,0,0,0,0,0,0,0,0,0,0,0,0,0,0,0,0,0,0,0,0,0,0,0,0,0,0,0,0,0,0,0,0,0,0,0,0,0,0,0]
[null,null,null,null,null,"Filles",{"$f":"COUNTIF(D$9:D$14,\"F\")","v":2},{"$f":"SUMPRODUCT(($D$9:$D$14=\"F\")*(H$9:H$14=\"x\"))","v":2},{"$f":"SUMPRODUCT(($D$9:$D$14=\"F\")*(I$9:I$14=\"x\"))","v":2},2,0,0,0,0,0,0,0,0,0,0,0,0,0,0,0,0,0,0,0,0,0,0,0,0,0,0,0,0,0,0,0,0,0,0,0,0,0,0,0,0,0,0,0,0,0,0,0,0,0,0,0,0,0,0,0,0,0]

{"sheet":"Réel","index":3,"n_rows":19,"n_cols":53,"rows_kept":19,"cut":false,"hidden":false,"merged":[[7,4,8,4],[1,0,1,2],[2,0,2,2],[7,0,8,0],[7,1,8,1],[7,2,8,2],[2,4,2,6],[1,4,1,6],[7,5,8,5],[7,6,8,6],[7,3,8,3],[6,52,8,52],[7,16,7,18],[7,19,7,21],[7,26,7,27],[7,28,7,29],[7,30,7,31],[7,32,7,33],[7,34,7,35],[7,36,7,37],[7,48,7,49],[7,50,7,51],[7,38,7,39],[7,40,7,41],[7,42,7,43],[7,44,7,45],[6,7,6,21],[6,42,6,51],[6,32,6,41],[6,22,6,31],[7,46,7,47],[7,7,7,9],[7,10,7,12],[7,13,7,15],[7,22,7,23],[7,24,7,25]]}
[]
["Date du premier jour du séjour :",null,null,null,"Période :"]
[{"$f":"Renseignements!B12","v":"2016-02-23"},null,null,null,{"$f":"Renseignements!B11","v":"Vacances de Février"}]
[]
[]
[]
[null,null,null,null,null,null,null,"Semaine 1",null,null,null,null,null,null,null,null,null,null,null,null,null,null,"Semaine 2",null,null,null,null,null,null,null,null,null,"Semaine 3",null,null,null,null,null,null,null,null,null,"Semaine 4",null,null,null,null,null,null,null,null,null,"TOT"]
["NOM","Prénom","Date de naissance","Sexe","Régime","Âge","Tranche d'âge",23,null,null,24,null,null,25,null,null,26,null,null,27,null,null,2,null,3,null,4,null,5,null,6,null,9,null,10,null,11,null,12,null,13,null,16,null,17,null,18,null,19,null,20]
[null,null,null,null,null,null,null,"m",null,"am","m",null,"am","m",null,"am","m",null,"am","m",null,"am","m","am","m","am","m","am","m","am","m","am","m","am","m","am","m","am","m","am","m","am","m","am","m","am","m","am","m","am","m","am"]
["E","Marvin","28/08/2007","G","CAF",{"$f":"IF(C10<>\"\",DATEDIF(C10,$A$3,\"y\"),\"\")","v":8},{"$f":"IF(C10=\"\",\"\",IF(F10<Renseignements!$B$15,\"Autres\",IF(F10<Renseignements!$B$16,Renseignements!$B$15&\" \"&Renseignements!$C$15&\" \"&Renseignements!$D$15&\" \"&Renseignements!$E$15,IF(F10<Renseignements!$B$17,Renseignements!$B$16&\" \"&Renseignements!$C$16&\" \"&Renseignements!$D$16&\" \"&Renseignements!$E$16,IF(F10<=Renseignements!$D$17,Renseignements!$B$17&\" \"&Renseignements!$C$17&\" \"&Renseignements!$D$17&\" \"&Renseignements!$E$17,\"Autres\")))))","v":"6 - 11 ans"},"x",null,"x","x",null,"x",null,null,null,null,null,null,null,null,null,null,null,null,null,null,null,null,null,null,null,null,null,null,null,null,null,null,null,null,null,null,null,null,null,null,null,null,null,null,null,{"$f":"SUBTOTAL(3,H10:AZ10)","v":4}]
[null,null,null,null,null,{"$f":"IF(C11<>\"\",DATEDIF(C11,$A$3,\"y\"),\"\")","v":""},{"$f":"IF(C11=\"\",\"\",IF(F11<Renseignements!$B$15,\"Autres\",IF(F11<Renseignements!$B$16,Renseignements!$B$15&\" \"&Renseignements!$C$15&\" \"&Renseignements!$D$15&\" \"&Renseignements!$E$15,IF(F11<Renseignements!$B$17,Renseignements!$B$16&\" \"&Renseignements!$C$16&\" \"&Renseignements!$D$16&\" \"&Renseignements!$E$16,IF(F11<=Renseignements!$D$17,Renseignements!$B$17&\" \"&Renseignements!$C$17&\" \"&Renseignements!$D$17&\" \"&Renseignements!$E$17,\"Autres\")))))","v":""},null,null,null,null,null,null,null,null,null,null,null,null,null,null,null,null,null,null,null,null,null,null,null,null,null,null,null,null,null,null,null,null,null,null,null,null,null,null,null,null,null,null,null,null,null,{"$f":"SUBTOTAL(3,H11:AZ11)","v":0}]
[null,null,null,null,null,"Total",{"$f":"SUM(G13:G16)","v":1},{"$f":"SUM(H13:H16)","v":1},null,{"$f":"SUM(J13:J16)","v":1},1,null,1,0,null,0,0,null,0,0,null,0,0,0,0,0,0,0,0,0,0,0,0,0,0,0,0,0,0,0,0,0,0,0,0,0,0,0,0,0,0,0]
[null,null,null,null,null,{"$f":"Renseignements!$B$15&\" \"&Renseignements!$C$15&\" \"&Renseignements!$D$15&\" \"&Renseignements!$E$15","v":"4 - 5 ans"},{"$f":"COUNTIF(G$9:G$11,$F13)","v":0},{"$f":"SUMPRODUCT(($G$9:$G$11=$F13)*(H$9:H$11=\"x\"))","v":0},null,{"$f":"SUMPRODUCT(($G$9:$G$11=$F13)*(J$9:J$11=\"x\"))","v":0},0,null,0,0,null,0,0,null,0,0,null,0,{"$f":"SUMPRODUCT(($G$9:$G$11=$F13)*(W$9:W$11=\"x\"))","v":0},0,0,0,0,0,0,0,0,0,{"$f":"SUMPRODUCT(($G$9:$G$11=$F13)*(AG$9:AG$11=\"x\"))","v":0},0,0,0,0,0,0,0,0,0,{"$f":"SUMPRODUCT(($G$9:$G$11=$F13)*(AQ$9:AQ$11=\"x\"))","v":0},0,0,0,0,0,0,0,0,0]
[null,null,null,null,null,{"$f":"Renseignements!$B$16&\" \"&Renseignements!$C$16&\" \"&Renseignements!$D$16&\" \"&Renseignements!$E$16","v":"6 - 11 ans"},{"$f":"COUNTIF(G$9:G$11,$F14)","v":1},1,null,1,1,null,1,0,null,0,0,null,0,0,null,0,0,0,0,0,0,0,0,0,0,0,0,0,0,0,0,0,0,0,0,0,0,0,0,0,0,0,0,0,0,0]
[null,null,null,null,null,{"$f":"Renseignements!$B$17&\" \"&Renseignements!$C$17&\" \"&Renseignements!$D$17&\" \"&Renseignements!$E$17","v":"12 - 17 ans"},{"$f":"COUNTIF(G$9:G$11,$F15)","v":0},0,null,0,0,null,0,0,null,0,0,null,0,0,null,0,0,0,0,0,0,0,0,0,0,0,0,0,0,0,0,0,0,0,0,0,0,0,0,0,0,0,0,0,0,0]
[null,null,null,null,null,"Autres",{"$f":"COUNTIF(G$9:G$11,$F16)","v":0},0,null,0,0,null,0,0,null,0,0,null,0,0,null,0,0,0,0,0,0,0,0,0,0,0,0,0,0,0,0,0,0,0,0,0,0,0,0,0,0,0,0,0,0,0]
[]
[null,null,null,null,null,"Garçons",{"$f":"COUNTIF(D$9:D$11,\"G\")","v":1},{"$f":"SUMPRODUCT(($D$9:$D$11=\"G\")*(H$9:H$11=\"x\"))","v":1},null,{"$f":"SUMPRODUCT(($D$9:$D$11=\"G\")*(J$9:J$11=\"x\"))","v":1},1,null,1,0,null,0,0,null,0,0,null,0,0,0,0,0,0,0,0,0,0,0,0,0,0,0,0,0,0,0,0,0,0,0,0,0,0,0,0,0,0,0]
[null,null,null,null,null,"Filles",{"$f":"COUNTIF(D$9:D$11,\"F\")","v":0},{"$f":"SUMPRODUCT(($D$9:$D$11=\"F\")*(H$9:H$11=\"x\"))","v":0},null,{"$f":"SUMPRODUCT(($D$9:$D$11=\"F\")*(J$9:J$11=\"x\"))","v":0},0,null,0,0,null,0,0,null,0,0,null,0,0,0,0,0,0,0,0,0,0,0,0,0,0,0,0,0,0,0,0,0,0,0,0,0,0,0,0,0,0,0]

{"sheet":"Tableau baignade","index":4,"n_rows":36,"n_cols":15,"rows_kept":36,"cut":false,"hidden":false,"merged":[[26,13,26,14],[26,0,27,0],[26,1,27,1],[26,2,27,2],[26,3,27,3],[26,4,27,4],[26,5,26,6],[26,8,27,8],[26,9,27,9],[26,10,27,10],[26,11,27,11],[26,12,27,12],[25,0,25,2],[25,3,25,4],[25,8,25,10],[25,11,25,12],[14,3,15,3],[14,4,15,4],[14,9,15,9],[14,10,15,10],[14,11,15,11],[14,12,15,12],[24,0,24,6],[24,8,24,14],[14,0,15,0],[14,1,15,1],[14,2,15,2],[14,8,15,8],[3,1,3,2],[3,4,3,7],[4,1,4,2],[4,4,4,7],[0,0,1,14],[13,8,13,10],[13,11,13,12],[14,13,14,14],[14,5,14,6],[6,1,6,2],[7,1,7,2],[13,0,13,2],[13,3,13,4],[6,3,6,5]]}
["ALSH : TABLEAU NAGEURS/NON NAGEURS"]
[]
[null,"Rappel :"]
[null,"Un animateur pour",null,5,"enfants de moins de",null,null,null,6,"ans"]
[null,{"$f":"B4","v":"Un animateur pour"},null,8,{"$f":"E4","v":"enfants de moins de"},null,null,null,{"$f":"I4","v":6},{"$f":"J4","v":"ans"}]
[]
[null,"Date de réservation",null,"2016-08-23"]
[null,"Nom de la structure",null,"ALSH"]
[null,"Adresse :",null,"RUE DES ENFANTS"]
[null,"Tél :",null,"00 00 00 00 00 - 06 00 00 00 00"]
[null,"Fax :",null,"00 00 00 00 00"]
[null,"Nom du responsable :",null,"Jean MARTIN"]
[]
["Prénom et NOM de l'animateur :",null,null,"BERKATI David",null,"+","-",null,"Prénom et NOM de l'animateur :",null,null,null,null,"+","-"]
["N°","NOM","Prénom","Date de naissance","Âge","Nageurs",null,null,"N°","NOM","Prénom","Date de naissance","Âge","Nageurs"]
[null,null,null,null,null,"Oui","Non",null,null,null,null,null,null,"Oui","Non"]
[1,null,null,null,null,null,null,null,1]
[2,null,null,null,null,null,null,null,2]
[3,null,null,null,null,null,null,null,3]
[4,null,null,null,null,null,null,null,4]
[5,null,null,null,null,null,null,null,5]
[6,null,null,null,null,null,null,null,6]
[7,null,null,null,null,null,null,null,7]
[8,null,null,null,null,null,null,null,8]
[]
["Prénom et NOM de l'animateur :",null,null,null,null,"+","-",null,"Prénom et NOM de l'animateur :",null,null,null,null,"+","-"]
["N°","NOM","Prénom","Date de naissance","Âge","Nageurs",null,null,"N°","NOM","Prénom","Date de naissance","Âge","Nageurs"]
[null,null,null,null,null,"Oui","Non",null,null,null,null,null,null,"Oui","Non"]
[1,null,null,null,null,null,null,null,1]
[2,null,null,null,null,null,null,null,2]
[3,null,null,null,null,null,null,null,3]
[4,null,null,null,null,null,null,null,4]
[5,null,null,null,null,null,null,null,5]
[6,null,null,null,null,null,null,null,6]
[7,null,null,null,null,null,null,null,7]
[8,null,null,null,null,null,null,null,8]

{"sheet":"Moyennes","index":5,"n_rows":23,"n_cols":4,"rows_kept":23,"cut":false,"hidden":false,"merged":[[16,3,16,7],[17,3,17,7],[20,3,20,7],[1,0,1,3],[2,0,2,3],[4,0,7,7],[19,0,19,7],[9,0,9,7],[11,3,11,7],[14,3,14,7],[15,3,15,7]]}
[]
["Période :"]
[{"$f":"Renseignements!B11","v":"Vacances de Février"}]
[]
["Les feuilles suivantes sont en lecture seule. \nAucune modification ne doit y être apportée. \nLes calculs se font automatiquements."]
[]
[]
[]
[]
["Moyennes :"]
[null,"Prév","Réel"]
["Semaine 1",{"$f":"AVERAGE(Prévisionnel!H15:V15)","v":0.8},{"$f":"AVERAGE(Réel!H12:V12)","v":0.4},"enfant(s) de moyenne par demi journée pour cette semaine "]
[]
[]
["Semaine 2",{"$f":"AVERAGE(Prévisionnel!W15:AF15)","v":0},{"$f":"AVERAGE(Réel!W12:AF12)","v":0},{"$f":"D12","v":"enfant(s) de moyenne par demi journée pour cette semaine "}]
["Semaine 3",{"$f":"AVERAGE(Prévisionnel!AG15:BE15)","v":0},{"$f":"AVERAGE(Réel!AG12:AP12)","v":0},{"$f":"D12","v":"enfant(s) de moyenne par demi journée pour cette semaine "}]
["Semaine 4",{"$f":"AVERAGE(Prévisionnel!BF15:BO15)","v":0},{"$f":"AVERAGE(Réel!AQ12:AZ12)","v":0},{"$f":"D12","v":"enfant(s) de moyenne par demi journée pour cette semaine "}]
["Globale",{"$f":"AVERAGE(Prévisionnel!H15:BO15)","v":0.2},{"$f":"AVERAGE(Réel!H12:AZ12)","v":0.1},"enfant(s) de moyenne par demi journée pour les quatre semaines"]
[]
["Inscrits"]
["Globale",{"$f":"SUM(Prévisionnel!G15)","v":4},{"$f":"SUM(Réel!G12)","v":1},"inscrit(s) sur cette période"]
["Garçons",{"$f":"Prévisionnel!G20","v":2},{"$f":"Réel!G18","v":1}]
["Filles",{"$f":"Prévisionnel!G21","v":2},{"$f":"Réel!G19","v":0}]

{"sheet":"Fréquentation globale","index":6,"n_rows":27,"n_cols":4,"rows_kept":27,"cut":false,"hidden":false,"merged":[[25,3,25,8],[26,3,26,8],[15,3,15,8],[16,3,16,8],[17,3,17,8],[18,3,18,8],[22,3,22,8],[20,3,21,8],[23,3,23,8],[1,0,1,4],[2,0,2,4],[4,3,5,8],[12,3,13,8],[24,3,24,8],[14,3,14,8],[6,3,6,8],[7,3,7,8],[8,3,8,8],[9,3,9,8],[10,3,10,8]]}
[]
["Période :"]
[{"$f":"Renseignements!B11","v":"Vacances de Février"}]
[]
[null,null,null,"Fréquentation :\n(en demi-journée)"]
[null,{"$f":"Moyennes!B11","v":"Prév"},{"$f":"Moyennes!C11","v":"Réel"}]
["Semaine 1",{"$f":"SUM(Prévisionnel!H15:V15)","v":12},{"$f":"SUM(Réel!H12:V12)","v":4},"demi journée de fréquentation pour cette semaine"]
["Semaine 2",{"$f":"SUM(Prévisionnel!W15:AF15)","v":0},{"$f":"SUM(Réel!W12:AF12)","v":0},{"$f":"D7","v":"demi journée de fréquentation pour cette semaine"}]
["Semaine 3",{"$f":"SUM(Prévisionnel!AG15:BE15)","v":0},{"$f":"SUM(Réel!AG12:AP12)","v":0},{"$f":"D7","v":"demi journée de fréquentation pour cette semaine"}]
["Semaine 4",{"$f":"SUM(Prévisionnel!BF15:BO15)","v":0},{"$f":"SUM(Réel!AQ12:AZ12)","v":0},{"$f":"D7","v":"demi journée de fréquentation pour cette semaine"}]
["Globale",{"$f":"SUM(B7:B10)","v":12},{"$f":"SUM(C7:C10)","v":4},"demi journées de fréquentation pour les quatre semaines"]
[]
[null,null,null,"Fréquentation :\n(en jours)"]
[null,{"$f":"B6","v":"Prév"},{"$f":"C6","v":"Réel"}]
["Semaine 1",{"$f":"B7/2","v":6},2,"journée(s) de fréquentation pour cette semaine"]
["Semaine 2",0,0,{"$f":"D15","v":"journée(s) de fréquentation pour cette semaine"}]
["Semaine 3",0,0,{"$f":"D15","v":"journée(s) de fréquentation pour cette semaine"}]
["Semaine 4",0,0,{"$f":"D15","v":"journée(s) de fréquentation pour cette semaine"}]
["Globale",{"$f":"SUM(B15:B18)","v":6},{"$f":"SUM(C15:C18)","v":2},"journée(s) de fréquentation pour les quatre semaines"]
[]
[null,null,null,"Fréquentation :\n(en heures)"]
[null,{"$f":"B6","v":"Prév"},{"$f":"C6","v":"Réel"}]
["Semaine 1",{"$f":"B15*(Renseignements!$B$20+Renseignements!$B$20)","v":48},{"$f":"C15*(Renseignements!$B$20+Renseignements!$B$20)","v":16},"heure(s) de fréquentation pour cette semaine"]
["Semaine 2",{"$f":"B16*(Renseignements!$B$20+Renseignements!$B$20)","v":0},{"$f":"C16*(Renseignements!$B$20+Renseignements!$B$20)","v":0},{"$f":"D23","v":"heure(s) de fréquentation pour cette semaine"}]
["Semaine 3",{"$f":"B17*(Renseignements!$B$20+Renseignements!$B$20)","v":0},{"$f":"C17*(Renseignements!$B$20+Renseignements!$B$20)","v":0},{"$f":"D23","v":"heure(s) de fréquentation pour cette semaine"}]
["Semaine 4",{"$f":"B18*(Renseignements!$B$20+Renseignements!$B$20)","v":0},{"$f":"C18*(Renseignements!$B$20+Renseignements!$B$20)","v":0},{"$f":"D23","v":"heure(s) de fréquentation pour cette semaine"}]
["Globale",{"$f":"SUM(B23:B26)","v":48},{"$f":"SUM(C23:C26)","v":16},"heure(s) de fréquentation pour les quatre semaines"]

{"sheet":"Fréquentation TA1","index":7,"n_rows":27,"n_cols":4,"rows_kept":27,"cut":false,"hidden":false,"merged":[[25,3,25,7],[26,3,26,7],[14,3,14,7],[15,3,15,7],[16,3,16,7],[17,3,17,7],[18,3,18,7],[22,3,22,7],[23,3,23,7],[24,3,24,7],[1,0,1,4],[2,0,2,4],[6,3,6,7],[7,3,7,7],[4,3,4,7],[5,3,5,7],[12,3,12,7],[13,3,13,7],[20,3,20,7],[21,3,21,7],[8,3,8,7],[9,3,9,7],[10,3,10,7]]}
[]
["Période :"]
[{"$f":"Renseignements!B11","v":"Vacances de Février"}]
[]
[null,null,null,"Fréquentation :"]
[null,{"$f":"Moyennes!B11","v":"Prév"},{"$f":"Moyennes!C11","v":"Réel"},{"$f":"Renseignements!$B$15&\" \"&Renseignements!$C$15&\" \"&Renseignements!$D$15&\" \"&Renseignements!$E$15","v":"4 - 5 ans"}]
["Semaine 1",{"$f":"SUM(Prévisionnel!H16:V16)*4","v":12},{"$f":"SUM(Réel!H13:V13)*4","v":0},"heure(s) de fréquentation pour cette semaine"]
["Semaine 2",{"$f":"SUM(Prévisionnel!W16:AF16)*4","v":0},{"$f":"SUM(Réel!W13:AF13)*4","v":0},{"$f":"D7","v":"heure(s) de fréquentation pour cette semaine"}]
["Semaine 3",{"$f":"SUM(Prévisionnel!AG16:BE16)*4","v":0},{"$f":"SUM(Réel!AG13:AP13)*4","v":0},{"$f":"D7","v":"heure(s) de fréquentation pour cette semaine"}]
["Semaine 4",{"$f":"SUM(Prévisionnel!BF16:BO16)*4","v":0},{"$f":"SUM(Réel!AQ13:AZ13)*4","v":0},{"$f":"D7","v":"heure(s) de fréquentation pour cette semaine"}]
["Globale",{"$f":"SUM(B7:B10)","v":12},{"$f":"SUM(C7:C10)","v":0},"heure(s) de fréquentation pour les quatre semaines"]
[]
[null,null,null,"Fréquentation :"]
[null,{"$f":"B6","v":"Prév"},{"$f":"C6","v":"Réel"},{"$f":"Renseignements!$B$15&\" \"&Renseignements!$C$15&\" \"&Renseignements!$D$15&\" \"&Renseignements!$E$15","v":"4 - 5 ans"}]
["Semaine 1",{"$f":"SUM(Prévisionnel!H16:V16)/2","v":1.5},{"$f":"SUM(Réel!H13:V13)/2","v":0},"journée(s) de fréquentation pour cette semaine"]
["Semaine 2",{"$f":"SUM(Prévisionnel!W16:AF16)/2","v":0},{"$f":"SUM(Réel!W13:AF13)/2","v":0},{"$f":"D15","v":"journée(s) de fréquentation pour cette semaine"}]
["Semaine 3",{"$f":"SUM(Prévisionnel!AG16:BE16)/2","v":0},{"$f":"SUM(Réel!AG13:AP13)/2","v":0},{"$f":"D15","v":"journée(s) de fréquentation pour cette semaine"}]
["Semaine 4",{"$f":"SUM(Prévisionnel!BF16:BO16)/2","v":0},{"$f":"SUM(Réel!AQ13:AZ13)/2","v":0},{"$f":"D15","v":"journée(s) de fréquentation pour cette semaine"}]
["Globale",{"$f":"SUM(B15:B18)","v":1.5},{"$f":"SUM(C15:C18)","v":0},"journée(s) de fréquentation pour les quatre semaines"]
[]
[null,null,null,"Fréquentation :"]
[null,{"$f":"B14","v":"Prév"},{"$f":"C14","v":"Réel"},{"$f":"Renseignements!$B$15&\" \"&Renseignements!$C$15&\" \"&Renseignements!$D$15&\" \"&Renseignements!$E$15","v":"4 - 5 ans"}]
["Semaine 1",{"$f":"SUM(Prévisionnel!H16:V16)","v":3},{"$f":"SUM(Réel!H13:V13)","v":0},"demi journée de fréquentation pour cette semaine"]
["Semaine 2",{"$f":"SUM(Prévisionnel!W16:AF16)","v":0},{"$f":"SUM(Réel!W13:AF13)","v":0},{"$f":"D23","v":"demi journée de fréquentation pour cette semaine"}]
["Semaine 3",{"$f":"SUM(Prévisionnel!AG16:BE16)","v":0},{"$f":"SUM(Réel!AG13:AP13)","v":0},{"$f":"D23","v":"demi journée de fréquentation pour cette semaine"}]
["Semaine 4",{"$f":"SUM(Prévisionnel!BF16:BO16)","v":0},{"$f":"SUM(Réel!AQ13:AZ13)","v":0},{"$f":"D23","v":"demi journée de fréquentation pour cette semaine"}]
["Globale",{"$f":"SUM(B23:B26)","v":3},{"$f":"SUM(C23:C26)","v":0},"demi journées de fréquentation pour les quatre semaines"]

{"sheet":"Fréquentation TA2","index":8,"n_rows":27,"n_cols":4,"rows_kept":27,"cut":false,"hidden":false,"merged":[[25,3,25,6],[26,3,26,6],[18,3,18,6],[22,3,22,6],[23,3,23,6],[24,3,24,6],[20,3,20,6],[21,3,21,6],[14,3,14,6],[15,3,15,6],[16,3,16,6],[17,3,17,6],[12,3,12,6],[13,3,13,6],[1,0,1,4],[2,0,2,4],[10,3,10,6],[6,3,6,6],[7,3,7,6],[8,3,8,6],[9,3,9,6],[4,3,4,6],[5,3,5,6]]}
[]
["Période :"]
[{"$f":"Renseignements!B11","v":"Vacances de Février"}]
[]
[null,null,null,"Fréquentation : "]
[null,{"$f":"Moyennes!B11","v":"Prév"},{"$f":"Moyennes!C11","v":"Réel"},{"$f":"Renseignements!$B$16&\" \"&Renseignements!$C$16&\" \"&Renseignements!$D$16&\" \"&Renseignements!$E$16","v":"6 - 11 ans"}]
["Semaine 1",{"$f":"SUM(Prévisionnel!H17:V17)*4","v":36},{"$f":"SUM(Réel!H14:V14)*4","v":16},"heure(s) de fréquentation pour cette semaine"]
["Semaine 2",{"$f":"SUM(Prévisionnel!W17:AF17)*4","v":0},{"$f":"SUM(Réel!W14:AF14)*4","v":0},{"$f":"D7","v":"heure(s) de fréquentation pour cette semaine"}]
["Semaine 3",{"$f":"SUM(Prévisionnel!AG17:BE17)*4","v":0},{"$f":"SUM(Réel!AG14:AP14)*4","v":0},{"$f":"D7","v":"heure(s) de fréquentation pour cette semaine"}]
["Semaine 4",{"$f":"SUM(Prévisionnel!BF17:BO17)*4","v":0},{"$f":"SUM(Réel!AQ14:AZ14)*4","v":0},{"$f":"D7","v":"heure(s) de fréquentation pour cette semaine"}]
["Globale",{"$f":"SUM(B7:B10)","v":36},{"$f":"SUM(C7:C10)","v":16},"heure(s) de fréquentation pour les quatre semaines"]
[]
[null,null,null,"Fréquentation :\n(6-11 ans)"]
[null,{"$f":"B6","v":"Prév"},{"$f":"C6","v":"Réel"},{"$f":"Renseignements!$B$16&\" \"&Renseignements!$C$16&\" \"&Renseignements!$D$16&\" \"&Renseignements!$E$16","v":"6 - 11 ans"}]
["Semaine 1",{"$f":"SUM(Prévisionnel!H17:V17)/2","v":4.5},{"$f":"SUM(Réel!H14:V14)/2","v":2},"journée(s) de fréquentation pour cette semaine"]
["Semaine 2",{"$f":"SUM(Prévisionnel!W17:AF17)/2","v":0},{"$f":"SUM(Réel!W14:AF14)/2","v":0},{"$f":"D15","v":"journée(s) de fréquentation pour cette semaine"}]
["Semaine 3",{"$f":"SUM(Prévisionnel!AG17:BE17)/2","v":0},{"$f":"SUM(Réel!AG14:AP14)/2","v":0},{"$f":"D15","v":"journée(s) de fréquentation pour cette semaine"}]
["Semaine 4",{"$f":"SUM(Prévisionnel!BF17:BO17)/2","v":0},{"$f":"SUM(Réel!AQ14:AZ14)/2","v":0},{"$f":"D15","v":"journée(s) de fréquentation pour cette semaine"}]
["Globale",{"$f":"SUM(B15:B18)","v":4.5},{"$f":"SUM(C15:C18)","v":2},"journée(s) de fréquentation pour les quatre semaines"]
[]
[null,null,null,"Fréquentation :\n(6-11 ans)"]
[null,{"$f":"B14","v":"Prév"},{"$f":"C14","v":"Réel"},{"$f":"Renseignements!$B$16&\" \"&Renseignements!$C$16&\" \"&Renseignements!$D$16&\" \"&Renseignements!$E$16","v":"6 - 11 ans"}]
["Semaine 1",{"$f":"SUM(Prévisionnel!H17:V17)","v":9},{"$f":"SUM(Réel!H14:V14)","v":4},"demi journée de fréquentation pour cette semaine"]
["Semaine 2",{"$f":"SUM(Prévisionnel!W17:AF17)","v":0},{"$f":"SUM(Réel!W14:AF14)","v":0},"demi journée de fréquentation pour cette semaine"]
["Semaine 3",{"$f":"SUM(Prévisionnel!AG17:BE17)","v":0},{"$f":"SUM(Réel!AG14:AP14)","v":0},"demi journée de fréquentation pour cette semaine"]
["Semaine 4",{"$f":"SUM(Prévisionnel!BF17:BO17)","v":0},{"$f":"SUM(Réel!AQ14:AZ14)","v":0},"demi journée de fréquentation pour cette semaine"]
["Globale",{"$f":"SUM(B23:B26)","v":9},{"$f":"SUM(C23:C26)","v":4},"demi journées de fréquentation pour les quatre semaines"]

{"sheet":"Fréquentation TA3","index":9,"n_rows":27,"n_cols":4,"rows_kept":27,"cut":false,"hidden":false,"merged":[[25,3,25,7],[26,3,26,7],[14,3,14,7],[15,3,15,7],[16,3,16,7],[17,3,17,7],[18,3,18,7],[22,3,22,7],[23,3,23,7],[24,3,24,7],[20,3,20,7],[21,3,21,7],[1,0,1,4],[2,0,2,4],[6,3,6,7],[7,3,7,7],[4,3,4,7],[5,3,5,7],[8,3,8,7],[9,3,9,7],[10,3,10,7],[12,3,12,7],[13,3,13,7]]}
[]
["Période :"]
[{"$f":"Renseignements!B11","v":"Vacances de Février"}]
[]
[null,null,null,"Fréquentation :"]
[null,{"$f":"Moyennes!B11","v":"Prév"},{"$f":"Moyennes!C11","v":"Réel"},{"$f":"Renseignements!$B$17&\" \"&Renseignements!$C$17&\" \"&Renseignements!$D$17&\" \"&Renseignements!$E$17","v":"12 - 17 ans"}]
["Semaine 1",{"$f":"SUM(Prévisionnel!H18:V18)*4","v":0},{"$f":"SUM(Réel!H15:V15)*4","v":0},"heure(s) de fréquentation pour cette semaine"]
["Semaine 2",{"$f":"SUM(Prévisionnel!W18:AF18)*4","v":0},{"$f":"SUM(Réel!W15:AF15)*4","v":0},"heure(s) de fréquentation pour cette semaine"]
["Semaine 3",{"$f":"SUM(Prévisionnel!AG18:BE18)*4","v":0},{"$f":"SUM(Réel!AG15:AP15)*4","v":0},"heure(s) de fréquentation pour cette semaine"]
["Semaine 4",{"$f":"SUM(Prévisionnel!BF18:BO18)*4","v":0},{"$f":"SUM(Réel!AQ15:AZ15)*4","v":0},"heure(s) de fréquentation pour cette semaine"]
["Globale",{"$f":"SUM(B7:B10)","v":0},{"$f":"SUM(C7:C10)","v":0},"heure(s) de fréquentation pour les quatre semaines"]
[]
[null,null,null,"Fréquentation :"]
[null,{"$f":"B6","v":"Prév"},{"$f":"C6","v":"Réel"},{"$f":"Renseignements!$B$17&\" \"&Renseignements!$C$17&\" \"&Renseignements!$D$17&\" \"&Renseignements!$E$17","v":"12 - 17 ans"}]
["Semaine 1",{"$f":"SUM(Prévisionnel!H18:V18)/2","v":0},{"$f":"SUM(Réel!H15:V15)/2","v":0},"journée(s) de fréquentation pour cette semaine"]
["Semaine 2",{"$f":"SUM(Prévisionnel!W18:AF18)/2","v":0},{"$f":"SUM(Réel!W15:AF15)/2","v":0},"journée(s) de fréquentation pour cette semaine"]
["Semaine 3",{"$f":"SUM(Prévisionnel!AG18:BE18)/2","v":0},{"$f":"SUM(Réel!AG15:AP15)/2","v":0},"journée(s) de fréquentation pour cette semaine"]
["Semaine 4",{"$f":"SUM(Prévisionnel!BF18:BO18)/2","v":0},{"$f":"SUM(Réel!AQ15:AZ15)/2","v":0},"journée(s) de fréquentation pour cette semaine"]
["Globale",{"$f":"SUM(B15:B18)","v":0},{"$f":"SUM(C15:C18)","v":0},"journée(s) de fréquentation pour les quatre semaines"]
[]
[null,null,null,"Fréquentation :"]
[null,{"$f":"B6","v":"Prév"},{"$f":"C6","v":"Réel"},{"$f":"Renseignements!$B$17&\" \"&Renseignements!$C$17&\" \"&Renseignements!$D$17&\" \"&Renseignements!$E$17","v":"12 - 17 ans"}]
["Semaine 1",{"$f":"SUM(Prévisionnel!H18:V18)","v":0},{"$f":"SUM(Réel!H15:V15)","v":0},"demi journée de fréquentation pour cette semaine"]
["Semaine 2",{"$f":"SUM(Prévisionnel!W18:AF18)","v":0},{"$f":"SUM(Réel!W15:AF15)","v":0},"demi journée de fréquentation pour cette semaine"]
["Semaine 3",{"$f":"SUM(Prévisionnel!AG18:BE18)","v":0},{"$f":"SUM(Réel!AG15:AP15)","v":0},"demi journée de fréquentation pour cette semaine"]
["Semaine 4",{"$f":"SUM(Prévisionnel!BF18:BO18)","v":0},{"$f":"SUM(Réel!AQ15:AZ15)","v":0},"demi journée de fréquentation pour cette semaine"]
["Globale",{"$f":"SUM(B23:B26)","v":0},{"$f":"SUM(C23:C26)","v":0},"demi journées de fréquentation pour les quatre semaines"]

{"sheet":"Calculs","index":14,"n_rows":9,"n_cols":6,"rows_kept":9,"cut":false,"hidden":true,"merged":[[6,1,6,4],[6,5,8,7],[7,1,7,4],[8,1,8,4],[1,5,3,7],[5,1,5,4]]}
[null,"Semaine 1","Semaine 2","Semaine 3","Semaine 4"]
[{"$f":"Renseignements!$B$15&\" \"&Renseignements!$C$15&\" \"&Renseignements!$D$15&\" \"&Renseignements!$E$15","v":"4 - 5 ans"},{"$f":"SUM(Réel!H13:V13)","v":0},{"$f":"SUM(Réel!W13:AF13)","v":0},{"$f":"SUM(Réel!AG13:AP13)","v":0},{"$f":"SUM(Réel!AQ13:AZ13)","v":0},"demi-journée(s)"]
[{"$f":"Renseignements!$B$16&\" \"&Renseignements!$C$16&\" \"&Renseignements!$D$16&\" \"&Renseignements!$E$16","v":"6 - 11 ans"},{"$f":"SUM(Réel!H14:V14)","v":4},{"$f":"SUM(Réel!W14:AF14)","v":0},{"$f":"SUM(Réel!AG14:AP14)","v":0},{"$f":"SUM(Réel!AQ14:AZ14)","v":0}]
[{"$f":"Renseignements!$B$17&\" \"&Renseignements!$C$17&\" \"&Renseignements!$D$17&\" \"&Renseignements!$E$17","v":"12 - 17 ans"},{"$f":"SUM(Réel!H15:V15)","v":0},{"$f":"SUM(Réel!W15:AF15)","v":0},{"$f":"SUM(Réel!AG15:AP15)","v":0},{"$f":"SUM(Réel!AQ15:AZ15)","v":0}]
[]
[null,"Sur les quatre semaines"]
[{"$f":"Renseignements!$B$15&\" \"&Renseignements!$C$15&\" \"&Renseignements!$D$15&\" \"&Renseignements!$E$15","v":"4 - 5 ans"},{"$f":"SUM(B2:E2)","v":0},null,null,null,"demi-journée(s)"]
[{"$f":"Renseignements!$B$16&\" \"&Renseignements!$C$16&\" \"&Renseignements!$D$16&\" \"&Renseignements!$E$16","v":"6 - 11 ans"},{"$f":"SUM(B3:E3)","v":4}]
[{"$f":"Renseignements!$B$17&\" \"&Renseignements!$C$17&\" \"&Renseignements!$D$17&\" \"&Renseignements!$E$17","v":"12 - 17 ans"},{"$f":"SUM(B4:E4)","v":0}]